bitfinex-derivatives/quotes_BTCF0:USTF0_20241116
["timestamp","ask_amount","ask_price","bid_price","bid_amount"]
[1731769680389,0.055051,90793.0,90788.0,0.1046459]
[1731769680696,0.055052,90791.0,90788.0,0.1046459]
[1731769681102,0.24959,90794.0,90789.0,0.11014853]
[1731769681597,0.24959,90794.0,90791.0,0.055052]
[1731769681899,0.24959,90794.0,90793.0,0.055051]
[1731769682893,0.0051,90802.0,90793.0,0.54522594]
[1731769683202,8.074e-05,90804.0,90803.0,0.055044]
[1731769683889,8.074e-05,90804.0,90803.0,0.16517919]
[1731769684991,8.074e-05,90804.0,90803.0,0.32230604]
[1731769685390,8.074e-05,90804.0,90803.0,0.65270604]
[1731769685996,0.0051,90815.0,90814.0,0.055038]
[1731769686199,0.549809,90829.0,90816.0,0.055036]
[1731769686393,0.544709,90829.0,90822.0,0.15712685]
[1731769686697,0.3608,90829.0,90822.0,0.15712685]
[1731769686897,0.3608,90829.0,90823.0,8.014e-05]
[1731769687197,0.3608,90829.0,90823.0,0.11020805]
[1731769687698,0.055029,90828.0,90823.0,0.11020805]
[1731769688198,0.3608,90829.0,90823.0,0.11020805]
[1731769688509,0.3608,90829.0,90828.0,0.055029]
[1731769688695,0.055022,90840.0,90828.0,0.055029]
[1731769688895,0.4172366,90846.0,90835.0,0.15712685]
[1731769689193,0.4172366,90846.0,90823.0,8.014e-05]
[1731769689194,0.055031,90825.0,90823.0,8.014e-05]
[1731769689398,0.3608,90824.0,90823.0,8.014e-05]
[1731769689592,0.055031,90825.0,90824.0,0.11008305]
[1731769689789,0.3608,90829.0,90824.0,0.11008305]
[1731769690003,0.055028,90831.0,90823.0,8.014e-05]
[1731769690212,0.055028,90831.0,90824.0,0.11008305]
[1731769690500,0.0051,90838.0,90830.0,0.15712685]
[1731769690705,0.12888,90840.0,90830.0,0.15712685]
[1731769690896,0.055025,90836.0,90830.0,0.15712685]
[1731769691094,0.41499754,90845.0,90831.0,0.11010002]
[1731769691301,0.055021,90842.0,90831.0,0.11010002]
[1731769692097,0.055021,90842.0,90832.0,0.00591395]
[1731769692390,0.055021,90842.0,90833.0,0.00591395]
[1731769692699,0.41499754,90845.0,90834.0,0.00591395]
[1731769693005,0.41499754,90845.0,90835.0,0.00591395]
[1731769693208,0.055025,90836.0,90835.0,0.1100879]
[1731769693504,0.055025,90836.0,90821.0,0.15712685]
[1731769693899,0.3608,90837.0,90824.0,0.11008426]
[1731769694206,0.3608,90837.0,90825.0,0.00587973]
[1731769694399,0.3608,90837.0,90826.0,0.00587973]
[1731769694594,0.3608,90837.0,90827.0,0.00587973]
[1731769694794,0.055029,90828.0,90827.0,0.11009517]
[1731769695004,0.055024,90836.0,90827.0,0.11009517]
[1731769695222,0.055024,90836.0,90821.0,0.15712685]
[1731769695223,0.3608,90837.0,90828.0,0.0059354]
[1731769695396,0.3608,90837.0,90821.0,0.15712685]
[1731769695397,0.3608,90837.0,90829.0,0.0059354]
[1731769695594,0.3608,90837.0,90830.0,0.0059355]
[1731769695893,0.055031,90825.0,90809.0,0.15712685]
[1731769696094,0.055031,90825.0,90809.0,0.21216685]
[1731769696305,0.055031,90825.0,90809.0,0.15712685]
[1731769696493,0.055031,90825.0,90824.0,0.11010305]
[1731769696692,0.183871,90825.0,90824.0,0.11010305]
[1731769696901,0.514191,90825.0,90802.0,0.3608]
[1731769697107,0.33032,90824.0,90802.0,0.3608]
[1731769697301,0.183871,90825.0,90802.0,0.3608]
[1731769697602,0.23966015,90825.0,90802.0,0.3608]
[1731769697809,0.23966015,90825.0,90823.0,1.4e-07]
[1731769699397,0.23966015,90825.0,90824.0,0.11010305]
[1731769699596,0.05578915,90825.0,90824.0,0.11010305]
[1731769699908,0.12884,90833.0,90824.0,0.11592223]
[1731769700096,0.055029,90829.0,90825.0,0.00581737]
[1731769700300,0.055029,90829.0,90826.0,0.00581737]
[1731769700499,0.055029,90829.0,90827.0,0.00581737]
[1731769700706,0.055029,90829.0,90828.0,0.00581737]
[1731769701205,0.746109,90829.0,90828.0,0.11591497]
[1731769701407,0.055032,90824.0,90823.0,1.4e-07]
[1731769704116,0.183872,90824.0,90823.0,1.4e-07]
[1731769704305,0.23801572,90824.0,90823.0,1.4e-07]
[1731769704607,0.23801572,90824.0,90795.0,0.00165166]
[1731769704608,0.055046,90801.0,90795.0,0.00165166]
[1731769704798,0.23801572,90824.0,90795.0,0.00165166]
[1731769704799,0.3608,90807.0,90795.0,0.00165166]
[1731769704997,0.055049,90797.0,90796.0,0.11010366]
[1731769709707,0.055044,90805.0,90796.0,0.11010366]
[1731769709911,0.36136001,90807.0,90803.0,0.10481176]
[1731769710109,0.0051,90815.0,90803.0,0.10481176]
[1731769710110,0.12884,90811.0,90803.0,0.10481176]
[1731769710315,0.055043,90805.0,90803.0,0.10481176]
[1731769710608,0.055043,90805.0,90804.0,0.11012609]
[1731769711016,0.055049,90796.0,90795.0,0.19903067]
[1731769711209,0.055049,90796.0,90795.0,0.00165166]
[1731769711711,0.055049,90796.0,90795.0,0.11178927]
[1731769714708,0.055049,90796.0,90795.0,0.04830361]
[1731769714709,0.15986076,90796.0,90795.0,0.04830361]
[1731769714916,0.15986076,90796.0,90782.0,0.19737901]
[1731769714917,0.055056,90784.0,90782.0,0.19737901]
[1731769715122,0.055057,90782.0,90780.0,0.19737901]
[1731769715420,0.055064,90771.0,90769.0,0.19737901]
[1731769715620,0.055064,90771.0,90770.0,0.19737901]
[1731769715817,0.055064,90771.0,90770.0,0.30753179]
[1731769716021,0.055064,90771.0,90770.0,0.11015278]
[1731769716218,0.055064,90771.0,90767.0,0.10481176]
[1731769716519,0.055064,90771.0,90766.0,0.00046]
[1731769716520,0.055065,90769.0,90768.0,0.11016795]
[1731769716914,0.3608,90772.0,90766.0,0.00046]
[1731769716915,0.055066,90768.0,90766.0,0.00046]
[1731769717225,0.055066,90768.0,90767.0,0.11016795]
[1731769719729,0.3608,90770.0,90767.0,0.11016795]
[1731769719918,0.49072,90770.0,90769.0,0.10481176]
[1731769720124,0.3608,90770.0,90767.0,0.11016795]
[1731769720329,0.3608,90770.0,90766.0,0.00046]
[1731769720517,0.3608,90770.0,90769.0,0.10481176]
[1731769720826,0.3608,90773.0,90769.0,0.10481176]
[1731769721122,0.3608,90773.0,90769.0,0.21498092]
[1731769722521,0.3608,90784.0,90769.0,0.21498092]
[1731769723432,0.055057,90783.0,90769.0,0.21498092]
[1731769724533,0.055057,90783.0,90769.0,0.41235993]
[1731769724930,0.055057,90783.0,90770.0,0.19737901]
[1731769725260,0.055057,90783.0,90777.0,0.10481176]
[1731769725733,0.055057,90783.0,90771.0,0.11016066]
[1731769725931,0.055057,90783.0,90770.0,0.30219077]
[1731769726231,0.055057,90783.0,90771.0,0.30753967]
[1731769726734,0.055057,90783.0,90772.0,0.19737901]
[1731769727430,0.055057,90783.0,90773.0,0.11016066]
[1731769727735,0.3608,90774.0,90773.0,0.11016066]
[1731769728119,0.055064,90772.0,90758.0,0.55817901]
[1731769728320,0.055065,90770.0,90767.0,0.11015945]
[1731769728626,0.055065,90770.0,90758.0,0.3616]
[1731769728830,0.055065,90770.0,90767.0,0.11016431]
[1731769729035,0.3608,90774.0,90767.0,0.11016431]
[1731769729331,0.3608,90774.0,90769.0,0.10481176]
[1731769729837,0.05441087,90776.0,90769.0,0.10481176]
[1731769730031,0.184979,90780.0,90770.0,0.11016795]
[1731769730032,0.05506,90778.0,90770.0,0.11016795]
[1731769730422,0.05506,90778.0,90772.0,0.19737901]
[1731769730627,0.055063,90773.0,90770.0,0.11016795]
[1731769730828,0.055063,90773.0,90766.0,0.00046]
[1731769731028,0.055063,90773.0,90770.0,0.1101637]
[1731769731235,0.055063,90773.0,90769.0,0.19737901]
[1731769731732,0.055063,90773.0,90767.0,0.11016673]
[1731769731733,0.055063,90773.0,90770.0,0.19737901]
[1731769731923,0.1852066,90780.0,90771.0,0.19737901]
[1731769732123,0.0552866,90780.0,90772.0,0.19737901]
[1731769732431,0.055062,90775.0,90771.0,0.19737901]
[1731769732732,0.055062,90775.0,90773.0,0.11016188]
[1731769733031,0.12992,90782.0,90772.0,0.19737901]
[1731769733032,0.055063,90773.0,90772.0,0.19737901]
[1731769733240,0.055064,90771.0,90766.0,0.26047406]
[1731769733434,0.055066,90768.0,90766.0,0.19786791]
[1731769733734,0.3608,90767.0,90766.0,0.00046]
[1731769734332,0.3608,90767.0,90766.0,0.11062552]
[1731769739935,0.3608,90767.0,90766.0,0.00046]
[1731769740129,0.4878,90767.0,90766.0,0.00046]
[1731769742342,0.4878,90767.0,90745.0,0.00165292]
[1731769742343,0.055076,90751.0,90749.0,0.19741166]
[1731769742542,0.055077,90749.0,90748.0,0.19741166]
[1731769742743,0.055077,90749.0,90747.0,0.19741166]
[1731769743039,0.127,90752.0,90748.0,0.1101728]
[1731769743234,0.182076,90752.0,90751.0,0.1976004]
[1731769743437,0.182076,90752.0,90748.0,0.26001406]
[1731769743644,0.182076,90752.0,90746.0,0.11019283]
[1731769743645,0.182076,90752.0,90751.0,0.19760297]
[1731769744147,0.182076,90752.0,90751.0,0.11019283]
[1731769744443,0.00064,90756.0,90750.0,0.26001406]
[1731769744654,0.127,90762.0,90754.0,0.2635187]
[1731769744939,0.055071,90760.0,90757.0,0.19763887]
[1731769745143,0.127,90766.0,90755.0,0.19763887]
[1731769745447,0.127,90766.0,90745.0,0.00165292]
[1731769745448,0.055071,90759.0,90758.0,0.11019101]
[1731769745641,0.3608,90759.0,90749.0,0.19763887]
[1731769745833,0.055077,90749.0,90748.0,0.19763887]
[1731769746233,0.055077,90749.0,90748.0,0.11018008]
[1731769746438,0.182077,90749.0,90748.0,0.11018008]
[1731769746640,0.055079,90746.0,90745.0,0.19763887]
[1731769746850,0.055079,90746.0,90741.0,0.16586714]
[1731769747043,0.52069276,90742.0,90741.0,0.16586714]
[1731769747234,0.52069276,90742.0,90719.0,0.6243187]
[1731769747235,0.46561176,90742.0,90719.0,0.6243187]
[1731769747435,0.055095,90720.0,90719.0,0.3608]
[1731769747843,0.415895,90720.0,90719.0,0.11020315]
[1731769748237,0.055097,90716.0,90700.0,0.1]
[1731769748442,0.52070876,90716.0,90700.0,0.1]
[1731769748744,0.055106,90701.0,90700.0,0.1]
[1731769749138,0.055106,90701.0,90700.0,0.21022988]
[1731769750538,0.3608,90705.0,90700.0,0.21022988]
[1731769751246,0.055104,90706.0,90700.0,0.21022988]
[1731769751439,0.05437542,90707.0,90700.0,0.21022988]
[1731769751645,0.060198,90715.0,90700.0,0.21022988]
[1731769751646,0.18310609,90714.0,90704.0,0.10481176]
[1731769751844,0.12704,90714.0,90700.0,0.21022988]
[1731769752050,0.3608,90706.0,90700.0,0.1]
[1731769752355,0.055106,90702.0,90701.0,0.11025054]
[1731769752542,0.055106,90702.0,90700.0,0.1]
[1731769753353,0.055106,90702.0,90700.0,0.00476166]
[1731769753555,0.3608,90705.0,90681.0,6.83e-05]
[1731769753751,0.055114,90690.0,90681.0,6.83e-05]
[1731769753942,0.055118,90683.0,90681.0,0.11032066]
[1731769756253,0.3608,90685.0,90682.0,0.003446]
[1731769756443,0.3608,90685.0,90683.0,0.003446]
[1731769756642,0.415916,90685.0,90684.0,0.003446]
[1731769757354,0.055118,90682.0,90681.0,6.83e-05]
[1731769760063,0.182198,90682.0,90681.0,6.83e-05]
[1731769762161,0.055118,90682.0,90681.0,6.83e-05]
[1731769762355,0.182198,90682.0,90681.0,6.83e-05]
[1731769762866,0.3608,90685.0,90681.0,6.83e-05]
[1731769763051,0.12708,90688.0,90681.0,0.11034437]
[1731769763251,0.3608,90685.0,90681.0,0.11034437]
[1731769764552,0.02205156,90689.0,90681.0,0.11034437]
[1731769764754,0.47188756,90693.0,90686.0,0.10481176]
[1731769765055,0.59844755,90693.0,90686.0,0.10481176]
[1731769765360,0.59844755,90693.0,90681.0,6.83e-05]
[1731769765361,0.3608,90693.0,90687.0,0.11027425]
[1731769765549,0.3608,90693.0,90687.0,0.16538825]
[1731769765748,0.3608,90693.0,90687.0,0.055114]
[1731769765954,0.3608,90693.0,90688.0,0.11026634]
[1731769767064,0.12712,90706.0,90692.0,0.10481176]
[1731769767262,0.12712,90706.0,90700.0,0.10481176]
[1731769767462,0.055101,90710.0,90700.0,0.10481176]
[1731769767774,0.11108178,90710.0,90701.0,0.1102554]
[1731769768150,0.23820178,90710.0,90701.0,0.1102554]
[1731769768362,0.12712,90709.0,90701.0,0.1102554]
[1731769768757,0.055105,90703.0,90701.0,0.1102554]
[1731769769260,0.055105,90703.0,90686.0,0.46645176]
[1731769769465,0.055105,90703.0,90702.0,0.11024689]
[1731769769771,0.12712,90709.0,90693.0,0.10481176]
[1731769770070,0.12712,90709.0,90694.0,0.01033637]
[1731769770263,0.12712,90709.0,90695.0,0.01378171]
[1731769770264,0.182222,90709.0,90695.0,0.01378171]
[1731769770454,0.182222,90709.0,90696.0,0.01378171]
[1731769770657,0.182222,90709.0,90697.0,0.01378171]
[1731769770865,0.182222,90709.0,90698.0,0.00344534]
[1731769771158,0.05598078,90710.0,90699.0,0.01378131]
[1731769771366,0.12792,90710.0,90700.0,0.11514759]
[1731769771553,0.060198,90715.0,90701.0,0.01378117]
[1731769771756,0.060198,90715.0,90698.0,0.36156]
[1731769771757,0.12792,90714.0,90708.0,0.055102]
[1731769772065,0.38341157,90717.0,90712.0,0.0551]
[1731769772066,0.00064,90717.0,90712.0,0.0551]
[1731769772264,0.0051,90727.0,90716.0,0.46561176]
[1731769772265,0.13302,90727.0,90716.0,0.46561176]
[1731769772463,0.05495761,90725.0,90724.0,0.10481176]
[1731769772777,0.00010191,90725.0,90717.0,0.10481176]
[1731769772962,0.00010191,90725.0,90724.0,0.11023596]
[1731769773263,0.00010191,90725.0,90724.0,0.01983261]
[1731769773562,0.00010191,90725.0,90724.0,0.00949836]
[1731769774262,0.00010191,90725.0,90724.0,0.00950655]
[1731769774463,0.00010191,90725.0,90724.0,0.1102238]
[1731769774765,0.00010191,90725.0,90724.0,0.12038128]
[1731769775063,0.00010191,90725.0,90724.0,0.02590343]
[1731769775255,0.00063589,90735.0,90724.0,0.02590343]
[1731769775456,0.00063589,90735.0,90729.0,0.10481176]
[1731769775655,0.00063589,90735.0,90730.0,0.01984111]
[1731769775957,0.00063589,90735.0,90734.0,0.3608]
[1731769776159,0.00063589,90735.0,90734.0,0.39054426]
[1731769776363,0.00063589,90735.0,90734.0,0.71774012]
[1731769776560,0.00063589,90735.0,90734.0,0.70521788]
[1731769776867,0.00063589,90735.0,90734.0,0.83148027]
[1731769777271,0.00063589,90735.0,90734.0,0.50084027]
[1731769777961,0.055076,90752.0,90735.0,0.055086]
[1731769778168,0.055076,90752.0,90738.0,0.10481176]
[1731769778565,0.055076,90752.0,90738.0,0.23489587]
[1731769779655,0.055077,90750.0,90738.0,0.23489587]
[1731769780171,0.3608,90747.0,90738.0,0.23489587]
[1731769780463,0.055082,90741.0,90738.0,0.22456196]
[1731769780865,0.055082,90741.0,90738.0,0.23489301]
[1731769781066,0.3608,90747.0,90738.0,0.23489301]
[1731769781454,0.055077,90750.0,90738.0,0.23489301]
[1731769781659,0.055077,90750.0,90746.0,0.10481176]
[1731769781857,0.055077,90750.0,90747.0,0.01987445]
[1731769782055,0.36136001,90756.0,90748.0,0.0095434]
[1731769782359,0.3608,90756.0,90755.0,0.10481176]
[1731769782563,0.415873,90756.0,90755.0,0.11091119]
[1731769782872,0.415873,90756.0,90755.0,0.22454556]
[1731769783167,0.415873,90756.0,90755.0,0.2343795]
[1731769784067,0.415873,90756.0,90755.0,0.22454556]
[1731769784270,0.07618637,90762.0,90755.0,0.22465735]
[1731769784566,0.02205156,90762.0,90756.0,0.01987321]
[1731769784870,0.02205156,90762.0,90757.0,0.01987321]
[1731769785170,0.02205156,90762.0,90758.0,0.02982139]
[1731769785468,0.055065,90770.0,90759.0,0.03533055]
[1731769785672,0.055065,90770.0,90763.0,0.10481176]
[1731769785858,0.055065,90770.0,90764.0,0.03533055]
[1731769786271,0.055066,90768.0,90764.0,0.14000208]
[1731769786569,0.055066,90768.0,90764.0,0.12967227]
[1731769787170,0.055067,90766.0,90764.0,0.12967227]
[1731769787660,0.055067,90766.0,90764.0,0.12967139]
[1731769788063,0.055067,90766.0,90764.0,0.11972321]
[1731769788963,0.055067,90766.0,90764.0,0.11362378]
[1731769789377,0.055067,90766.0,90764.0,0.11018069]
[1731769790473,0.02203962,90769.0,90755.0,0.00011179]
[1731769790865,0.02203962,90769.0,90756.0,0.11017523]
[1731769791178,0.415872,90757.0,90756.0,0.11017523]
[1731769791375,0.415872,90757.0,90755.0,0.00011179]
[1731769792873,0.415872,90757.0,90756.0,0.11018555]
[1731769793876,0.47212826,90757.0,90756.0,0.11018555]
[1731769794467,0.47212826,90757.0,90756.0,0.11362918]
[1731769795375,0.47212826,90757.0,90756.0,0.11018555]
[1731769795973,0.055064,90771.0,90755.0,0.00011179]
[1731769796173,0.055065,90769.0,90764.0,0.10481176]
[1731769796988,0.055065,90769.0,90764.0,0.21498699]
[1731769797977,0.3608,90775.0,90764.0,0.21498699]
[1731769798170,0.48252,90775.0,90764.0,0.2253163]
[1731769798377,0.48308001,90775.0,90764.0,0.2253163]
[1731769798575,0.00056001,90775.0,90774.0,0.055062]
[1731769798874,0.00011051,90787.0,90776.0,0.055061]
[1731769799079,0.00011051,90787.0,90785.0,0.10481176]
[1731769799773,0.00011051,90787.0,90786.0,0.11014914]
[1731769800301,0.05516451,90787.0,90786.0,0.11014914]
[1731769800469,0.055061,90776.0,90774.0,0.3608]
[1731769800672,0.055061,90776.0,90775.0,0.11513934]
[1731769800985,0.055061,90776.0,90775.0,0.10481176]
[1731769801179,0.48308001,90782.0,90775.0,0.21496029]
[1731769801369,0.00056001,90782.0,90775.0,0.21496029]
[1731769801573,0.055057,90784.0,90775.0,0.21496029]
[1731769801769,0.00011051,90787.0,90783.0,0.10481176]
[1731769801970,0.00011051,90787.0,90785.0,0.3608]
[1731769802172,0.00011051,90787.0,90786.0,0.01032675]
[1731769802380,0.055045,90803.0,90786.0,0.1206087]
[1731769802581,0.055045,90803.0,90799.0,0.20962352]
[1731769802766,0.055045,90803.0,90799.0,0.10481176]
[1731769803080,0.055045,90803.0,90799.0,0.11513683]
[1731769803279,0.055045,90803.0,90799.0,0.22528536]
[1731769803691,0.055045,90803.0,90799.0,0.33009712]
[1731769803873,0.3608,90820.0,90799.0,0.66049712]
[1731769803874,0.055039,90812.0,90799.0,0.66049712]
[1731769804071,0.055039,90812.0,90811.0,0.10481176]
[1731769804668,0.055039,90812.0,90811.0,0.21492997]
[1731769805375,0.055039,90812.0,90811.0,0.11011821]
[1731769805678,0.055039,90812.0,90811.0,0.00344162]
[1731769806371,0.055039,90812.0,90811.0,0.00344135]
[1731769806575,0.055039,90812.0,90811.0,0.11011821]
[1731769807082,0.055039,90812.0,90807.0,0.10481176]
[1731769807273,0.055039,90812.0,90808.0,0.12044208]
[1731769807477,0.05504,90810.0,90809.0,0.01032387]
[1731769807984,0.05504,90810.0,90793.0,0.05505]
[1731769808184,0.05504,90810.0,90774.0,0.10481176]
[1731769808185,0.055068,90764.0,90762.0,0.17480541]
[1731769808484,0.10481176,90801.0,90759.0,0.00165266]
[1731769808485,0.05507,90761.0,90759.0,0.00165266]
[1731769808694,0.12168,90760.0,90759.0,0.00165266]
[1731769808879,0.12168,90760.0,90736.0,0.38283025]
[1731769809187,0.055076,90751.0,90738.0,0.11017705]
[1731769809378,0.055077,90750.0,90738.0,0.11017705]
[1731769809573,0.055077,90750.0,90740.0,0.10481176]
[1731769809777,0.12168,90760.0,90744.0,0.3608]
[1731769809984,0.055073,90757.0,90747.0,0.10481176]
[1731769810386,0.055073,90757.0,90748.0,0.11019951]
[1731769810579,0.055075,90753.0,90748.0,0.11019951]
[1731769810778,0.12168,90760.0,90748.0,0.11019951]
[1731769810779,0.055076,90752.0,90748.0,0.11019951]
[1731769811077,0.055077,90749.0,90737.0,0.00010996]
[1731769811277,0.055077,90749.0,90738.0,0.1101904]
[1731769811481,0.055077,90749.0,90737.0,0.00010996]
[1731769811482,0.176751,90760.0,90744.0,0.3608]
[1731769812289,0.12168,90760.0,90745.0,0.11020073]
[1731769812485,0.3608,90746.0,90745.0,0.11020073]
[1731769812991,0.05509,90728.0,90727.0,0.00065]
[1731769813287,0.17681,90728.0,90727.0,0.00065]
[1731769813690,0.17681,90728.0,90727.0,0.1108398]
[1731769813988,0.05509,90728.0,90727.0,0.11092119]
[1731769814175,0.17681,90728.0,90727.0,0.11092119]
[1731769814380,0.05509,90728.0,90727.0,0.11092119]
[1731769814592,0.17681,90728.0,90727.0,0.11092119]
[1731769816380,0.17681,90728.0,90727.0,0.00753566]
[1731769817879,0.33420623,90728.0,90727.0,3.9e-07]
[1731769818079,0.055096,90718.0,90697.0,0.3608]
[1731769818700,0.055103,90707.0,90697.0,0.3608]
[1731769818997,0.055103,90707.0,90701.0,0.11023231]
[1731769820203,0.055106,90703.0,90701.0,0.11023231]
[1731769820791,0.055106,90703.0,90687.0,0.15739623]
[1731769820991,0.055106,90701.0,90684.0,0.3608]
[1731769822100,0.176866,90701.0,90700.0,0.21025297]
[1731769822399,0.055106,90701.0,90700.0,0.21025297]
[1731769822812,0.055106,90701.0,90700.0,0.1]
[1731769824888,0.055106,90701.0,90700.0,0.029154]
[1731769825092,0.055106,90701.0,90671.0,0.3608]
[1731769825093,0.05512,90678.0,90671.0,0.3608]
[1731769825397,0.05512,90678.0,90666.0,0.15739623]
[1731769825398,0.05512,90678.0,90677.0,0.00172082]
[1731769825705,0.05512,90678.0,90677.0,0.11197379]
[1731769827003,0.3608,90687.0,90677.0,0.11197379]
[1731769827209,0.178116,90686.0,90677.0,0.11197379]
[1731769827391,0.05512,90680.0,90677.0,0.11197379]
[1731769828092,0.3608,90687.0,90677.0,0.11197379]
[1731769829099,0.0051,90691.0,90686.0,0.3608]
[1731769829401,0.0051,90702.0,90695.0,0.05511]
[1731769829704,0.00012751,90705.0,90701.0,0.51819623]
[1731769829904,0.00012751,90705.0,90702.0,0.00344588]
[1731769830095,0.00012751,90705.0,90703.0,0.00344588]
[1731769830290,0.00012751,90705.0,90701.0,0.51903623]
[1731769830291,0.00012751,90705.0,90704.0,0.00344588]
[1731769830489,0.00012751,90705.0,90704.0,0.0094669]
[1731769830997,0.00012751,90705.0,90704.0,0.11971501]
[1731769831605,0.00012751,90705.0,90704.0,0.11024811]
[1731769831798,0.00012751,90705.0,90704.0,0.116215]
[1731769832501,0.00012751,90705.0,90704.0,0.11024811]
[1731769832898,0.00012751,90705.0,90701.0,0.15739623]
[1731769833097,0.00012751,90705.0,90704.0,0.11024811]
[1731769833498,0.00012751,90705.0,90701.0,0.15739623]
[1731769833801,0.00012751,90705.0,90704.0,0.11024811]
[1731769834001,0.055106,90702.0,90695.0,0.3608]
[1731769834197,0.055106,90702.0,90693.0,0.15739623]
[1731769834398,0.055106,90702.0,90693.0,0.21250723]
[1731769834598,0.00012751,90705.0,90696.0,0.11024811]
[1731769834900,0.00012751,90705.0,90696.0,0.055109]
[1731769835805,0.00012751,90705.0,90703.0,0.15739623]
[1731769836110,0.00012751,90705.0,90684.0,0.28039623]
[1731769836111,0.05523151,90705.0,90704.0,0.11025236]
[1731769836492,0.05523151,90705.0,90694.0,0.15739623]
[1731769836696,0.05523151,90705.0,90695.0,0.11025236]
[1731769836898,0.055105,90703.0,90695.0,0.11025236]
[1731769837095,0.055105,90703.0,90694.0,0.15739623]
[1731769837301,0.055105,90703.0,90696.0,0.11024811]
[1731769837497,0.055105,90703.0,90694.0,0.15739623]
[1731769837904,0.00012751,90705.0,90695.0,0.11025419]
[1731769838109,0.00012751,90705.0,90694.0,0.15739623]
[1731769838110,0.00012751,90705.0,90701.0,0.3608]
[1731769839000,0.055105,90704.0,90702.0,0.11024993]
[1731769839397,0.05511,90696.0,90691.0,0.3608]
[1731769839605,0.055112,90692.0,90691.0,0.3608]
[1731769839800,0.055112,90692.0,90684.0,0.15739623]
[1731769840296,0.055115,90686.0,90685.0,0.11026148]
[1731769840813,0.05512,90679.0,90677.0,0.00172082]
[1731769841308,0.05512,90679.0,90678.0,0.11027121]
[1731769841694,0.05512,90679.0,90677.0,0.00172082]
[1731769841898,0.05512,90679.0,90677.0,6.685e-05]
[1731769844108,0.12304,90678.0,90677.0,6.685e-05]
[1731769849510,0.25363429,90678.0,90677.0,6.685e-05]
[1731769849714,0.12304,90678.0,90677.0,6.685e-05]
[1731769850908,0.88447429,90678.0,90677.0,8.5e-07]
[1731769851099,0.80749634,90678.0,90677.0,8.5e-07]
[1731769851408,0.055139,90648.0,90642.0,0.0051]
[1731769851612,0.055139,90648.0,90641.0,0.00165458]
[1731769851819,0.05514,90645.0,90641.0,0.00165458]
[1731769852002,0.055141,90644.0,90642.0,0.11032048]
[1731769852510,0.055142,90642.0,90641.0,0.00165458]
[1731769853408,0.055142,90642.0,90597.0,0.01034246]
[1731769853409,0.33112165,90641.0,90597.0,0.01034246]
[1731769853600,0.33112165,90641.0,90610.0,0.3608]
[1731769853601,0.15739623,90619.0,90610.0,0.3608]
[1731769853808,0.15739623,90619.0,90596.0,0.3608]
[1731769853809,0.055162,90609.0,90596.0,0.3608]
[1731769854109,0.055164,90606.0,90601.0,0.11034482]
[1731769854313,0.12308,90608.0,90596.0,0.3608]
[1731769854506,0.055167,90601.0,90596.0,0.3608]
[1731769854902,0.055167,90601.0,90600.0,0.2103704]
[1731769855319,0.055164,90607.0,90600.0,0.2103704]
[1731769855503,0.3608,90609.0,90600.0,0.2103704]
[1731769855708,0.055167,90602.0,90600.0,0.2103704]
[1731769856118,0.48851623,90601.0,90600.0,0.1103704]
[1731769856319,0.48851623,90601.0,90570.0,0.3608]
[1731769856320,0.84931623,90601.0,90570.0,0.3608]
[1731769856527,0.055179,90582.0,90579.0,0.3608]
[1731769856812,0.055179,90582.0,90580.0,6.604e-05]
[1731769857313,0.055179,90582.0,90581.0,0.11039294]
[1731769857614,0.055179,90582.0,90580.0,6.604e-05]
[1731769857914,0.055179,90582.0,90581.0,0.11039294]
[1731769858506,0.055179,90582.0,90580.0,6.604e-05]
[1731769859013,0.055179,90582.0,90581.0,0.11039781]
[1731769859912,0.07724466,90582.0,90581.0,0.11039781]
[1731769860701,0.07724466,90582.0,90580.0,6.604e-05]
[1731769861505,0.07724466,90582.0,90580.0,5.02e-06]
[1731769862416,0.3312,90581.0,90580.0,5.02e-06]
[1731769862615,0.07724466,90582.0,90580.0,5.02e-06]
[1731769863224,0.055179,90582.0,90581.0,0.11039903]
[1731769863919,0.055173,90592.0,90581.0,0.11039903]
[1731769864214,0.0051,90597.0,90591.0,0.7216]
[1731769864515,0.055168,90600.0,90591.0,0.7216]
[1731769864714,0.055168,90600.0,90599.0,0.51819623]
[1731769865019,0.00165661,90601.0,90591.0,0.51819623]
[1731769865217,0.055173,90592.0,90591.0,0.51819623]
[1731769865719,0.055173,90592.0,90591.0,0.11038075]
[1731769866223,0.055173,90592.0,90580.0,5.02e-06]
[1731769866224,0.055179,90581.0,90580.0,5.02e-06]
[1731769866814,0.055179,90581.0,90580.0,0.05259365]
[1731769867912,0.055192,90562.0,90559.0,0.3608]
[1731769868313,0.055192,90562.0,90561.0,0.44167903]
[1731769868720,0.055187,90568.0,90561.0,0.44167903]
[1731769869024,0.055187,90568.0,90567.0,0.15739623]
[1731769869210,0.055187,90568.0,90567.0,0.51819623]
[1731769869413,0.055192,90561.0,90559.0,0.3608]
[1731769869817,0.055192,90561.0,90560.0,0.44335849]
[1731769870219,0.055192,90561.0,90560.0,0.11207849]
[1731769873413,0.05512391,90561.0,90560.0,0.11207849]
[1731769873917,0.175867,90570.0,90560.0,0.11207849]
[1731769874417,0.0051,90576.0,90560.0,0.11207849]
[1731769874620,0.055188,90567.0,90560.0,0.11207849]
[1731769874820,0.0051,90576.0,90560.0,0.11207849]
[1731769875015,0.12582,90576.0,90566.0,0.15739623]
[1731769875218,0.055184,90573.0,90566.0,0.15739623]
[1731769875723,0.12072,90580.0,90567.0,0.11041427]
[1731769876019,0.0051,90581.0,90567.0,0.11041427]
[1731769876020,0.055185,90573.0,90567.0,0.11041427]
[1731769876422,0.0051,90581.0,90567.0,0.11041427]
[1731769876423,0.055181,90580.0,90567.0,0.11041427]
[1731769876718,0.055181,90580.0,90578.0,0.15739623]
[1731769877313,0.055181,90580.0,90579.0,0.11040756]
[1731769878514,0.12582,90589.0,90579.0,0.44160756]
[1731769878515,0.0051,90589.0,90579.0,0.44160756]
[1731769878716,0.0051,90594.0,90588.0,0.51819623]
[1731769878919,0.060268,90600.0,90597.0,0.1234988]
[1731769879123,0.055168,90600.0,90597.0,0.1234988]
[1731769879321,0.055168,90600.0,90598.0,0.11039477]
[1731769879825,0.055164,90606.0,90598.0,0.11039477]
[1731769880029,0.0051,90609.0,90603.0,0.055166]
[1731769880211,0.3608,90619.0,90607.0,0.3608]
[1731769880212,0.055161,90612.0,90607.0,0.3608]